[Event "48th Indian U15-ch Open 2023"]
[Site "Jalgaon"]
[Date "2023.12.31"]
[Round "7.5"]
[White "Madhvendra Pratap Sharma"]
[Black "Mrithyunjay Mahadevan"]
[Result "1-0"]
[ECO "B32"]
[WhiteElo "1803"]
[BlackElo "1944"]
[Annotator "RC"]
[PlyCount "67"]
[EventDate "2023.12.30"]
[EventType "swiss"]
[EventCountry "IND"]
[SourceTitle "playchess.com"]
[Source "ChessBase"]
[SourceQuality "1"]
[TimeControl "5400+30"]

1. e4 {[%emt 0:01:58]} c5 {[%emt 0:00:08]} 2. Nf3 {[%emt 0:00:05]} Nc6 {[%emt 0:00:12]} 3. d4 {[%emt 0:00:02]} cxd4 {[%emt 0:00:06]} 4. Nxd4 {[%emt 0:00:06]} Qb6 {[%emt 0:00:04]} 5. Nb5 {[%emt 0:00:40]} a6 {[%emt 0:00:16]} 6. Be3 {[%emt 0:02:08]} Qd8 {[%emt 0:00:03]} 7. N5a3 {[%emt 0:00:33]} Nf6 {[%emt 0:16:27]} 8. Nc3 {[%emt 0:18:53]} e6 {[%emt 0:00:08]} 9. Nc4 {[%emt 0:00:43]} b5 {[%emt 0:00:10]} 10. Nd6+ {[%emt 0:04:27]} Bxd6 {[%emt 0:00:08]} 11. Qxd6 {[%emt 0:00:05]} b4 {[%emt 0:01:53]} 12. Na4 {[%emt 0:03:06]} Nxe4 {[%emt 0:00:14]} 13. Qf4 {[%emt 0:07:17]} d5 {[%emt 0:00:21]} 14. O-O-O {[%emt 0:03:23]} O-O {[%emt 0:14:29]} 15. Bd3 {[%emt 0:05:43]} f5 {[%emt 0:13:41]} 16. Bc4 {[%emt 0:07:46]} g5 {[%emt 0:07:24]} 17. Qf3 {[%emt 0:03:48]} Ne5 {[%emt 0:01:59]} 18. Bxd5 {[%emt 0:04:21]} exd5 {[%emt 0:02:37]} 19. Qe2 {[%emt 0:04:12]} Qa5 {[%emt 0:12:12]} 20. b3 {[%emt 0:06:21]} Nc6 {[%emt 0:11:47]} 21. Qh5 {[%emt 0:04:07]} Bd7 {[%emt 0:01:18]} 22. Bxg5 {[%emt 0:01:56]} Ne5 {[%emt 0:01:09]} 23. f3 {[%emt 0:02:08]} Be8 {[%emt 0:01:01]} 24. Qh3 {[%emt 0:00:50]} Nxg5 {[%emt 0:01:30]} 25. Qg3 {[%emt 0:00:06]} Nef7 {[%emt 0:00:10]} 26. h4 {[%emt 0:00:36]} Bxa4 {[%emt 0:02:22]} 27. hxg5 {[%emt 0:00:14]} Nh8 {[%emt 0:01:27]} 28. Rxh7 {[%emt 0:01:22]} Kxh7 {[%emt 0:03:45]} 29. Rh1+ {[%emt 0:01:30]} Kg8 {[%emt 0:00:33]} 30. Qh2 {[%emt 0:02:44]} Kf7 {[%emt 0:03:41]} 31. Qe5 {[%emt 0:06:24]} Rg8 {[%emt 0:03:02]} 32. Rh7+ {[%emt 0:00:20]} Kg6 {[%emt 0:00:07]} 33. Qf6+ {[%emt 0:00:08]} Kxh7 {[%emt 0:00:06]} 34. Qh6# {[%emt 0:00:04]} 1-0

[Event "48th Indian U15-ch Open 2023"]
[Site "Jalgaon"]
[Date "2023.12.31"]
[Round "7.6"]
[White "Samyak Dharewa"]
[Black "Patil Akshaj"]
[Result "1-0"]
[ECO "B33"]
[WhiteElo "1939"]
[BlackElo "1559"]
[Annotator "RC"]
[PlyCount "84"]
[EventDate "2023.12.30"]
[EventType "swiss"]
[EventCountry "IND"]
[SourceTitle "playchess.com"]
[Source "ChessBase"]
[SourceQuality "1"]
[TimeControl "5400+30"]

1. e4 {[%emt 0:00:04]} c5 {[%emt 0:00:07]} 2. Nf3 {[%emt 0:00:03]} Nc6 {[%emt 0:00:10]} 3. d4 {[%emt 0:00:10]} cxd4 {[%emt 0:00:07]} 4. Nxd4 {[%emt 0:00:03]} Nf6 {[%emt 0:00:04]} 5. Nc3 {[%emt 0:00:45]} e5 {[%emt 0:00:08]} 6. Ndb5 {[%emt 0:00:10]} d6 {[%emt 0:00:08]} 7. a4 {[%emt 0:00:47]} a6 {[%emt 0:00:07]} 8. Na3 {[%emt 0:00:08]} Bg4 {[%emt 0:00:18]} 9. f3 {[%emt 0:00:32]} Be6 {[%emt 0:00:07]} 10. Bc4 {[%emt 0:00:22]} Ne7 {[%emt 0:00:09]} 11. Bg5 {[%emt 0:08:01]} Rc8 {[%emt 0:00:36]} 12. Qd3 {[%emt 0:10:04]} Qc7 {[%emt 0:06:53]} 13. Bxf6 {[%emt 0:04:44]} Bxc4 {[%emt 0:01:20]} 14. Nxc4 {[%emt 0:00:09]} Qxc4 {[%emt 0:00:26]} 15. Bg5 {[%emt 0:00:52]} Qxd3 {[%emt 0:02:55]} 16. cxd3 {[%emt 0:00:30]} Nc6 {[%emt 0:00:16]} 17. Be3 {[%emt 0:04:08]} Nb4 {[%emt 0:02:50]} 18. Kd2 {[%emt 0:03:42]} Be7 {[%emt 0:00:23]} 19. Rac1 {[%emt 0:09:06]} O-O {[%emt 0:01:05]} 20. Ke2 {[%emt 0:04:31]} h6 {[%emt 0:02:07]} 21. g3 {[%emt 0:01:38]} Rc6 {[%emt 0:16:51]} 22. Nd5 {[%emt 0:10:50]} Nxd5 {[%emt 0:00:42]} 23. exd5 {[%emt 0:00:02]} Rcc8 {[%emt 0:00:01]} 24. Rc4 {[%emt 0:00:31]} Rxc4 {[%emt 0:01:04]} 25. dxc4 {[%emt 0:00:02]} Rc8 {[%emt 0:00:07]} 26. Kd3 {[%emt 0:01:11]} Kf8 {[%emt 0:00:20]} 27. b4 {[%emt 0:04:48]} Ke8 {[%emt 0:00:46]} 28. Rc1 {[%emt 0:04:14]} Kd7 {[%emt 0:00:37]} 29. c5 {[%emt 0:01:00]} f5 {[%emt 0:01:40]} 30. g4 {[%emt 0:00:13]} g6 {[%emt 0:05:45]} 31. h4 {[%emt 0:06:30]} f4 {[%emt 0:03:33]} 32. Bf2 {[%emt 0:00:22]} Bd8 {[%emt 0:11:59]} 33. Ke4 {[%emt 0:01:54]} a5 {[%emt 0:04:06]} 34. b5 {[%emt 0:01:01]} b6 {[%emt 0:00:16]} 35. c6+ {[%emt 0:02:49]} Ke7 {[%emt 0:00:21]} 36. c7 {[%emt 0:01:13]} Rxc7 {[%emt 0:00:19]} 37. Rc6 {[%emt 0:00:07]} Rb7 {[%emt 0:04:48]} 38. h5 {[%emt 0:01:15]} g5 {[%emt 0:06:54]} 39. Kf5 {[%emt 0:00:12]} Rd7 {[%emt 0:06:41]} 40. Bxb6 {[%emt 0:01:54]} Bxb6 {[%emt 0:00:20]} 41. Rxb6 {[%emt 0:00:02]} Kf7 {[%emt 0:00:09]} 42. Ra6 {[%emt 0:02:52]} Re7 {[%emt 0:00:13]} 1-0

[Event "48th Indian U15-ch Open 2023"]
[Site "Jalgaon"]
[Date "2023.12.31"]
[Round "7.7"]
[White "Sherla Prathamesh"]
[Black "Arshpreet Singh"]
[Result "1-0"]
[ECO "A20"]
[WhiteElo "1726"]
[BlackElo "1878"]
[Annotator "NA RC"]
[PlyCount "75"]
[EventDate "2023.12.30"]
[EventType "swiss"]
[EventCountry "IND"]
[SourceTitle "playchess.com"]
[Source "ChessBase"]
[SourceQuality "1"]
[TimeControl "5400+30"]

1. c4 {[%emt 0:00:03]} e5 {[%emt 0:03:04]} 2. g3 {[%emt 0:00:18]} c6 {[%emt 0:00:15]} 3. Bg2 {[%emt 0:01:29]} d5 {[%emt 0:00:06]} 4. cxd5 {[%emt 0:01:15]} cxd5 {[%emt 0:00:09]} 5. Nf3 {[%emt 0:00:57]} Nc6 {[%emt 0:00:44]} 6. d3 {[%emt 0:01:37]} f6 {[%emt 0:00:25]} 7. O-O {[%emt 0:00:20]} Be6 {[%emt 0:00:11]} 8. a3 {[%emt 0:01:13]} Bd6 {[%emt 0:00:58]} 9. Nc3 {[%emt 0:02:20]} Nge7 {[%emt 0:00:32]} 10. b4 {[%emt 0:01:21]} Qd7 {[%emt 0:00:09]} 11. Bd2 {[%emt 0:08:09]} Bh3 {[%emt 0:00:48]} 12. e4 {[%emt 0:03:58]} d4 {[%emt 0:00:33]} 13. Nb5 {[%emt 0:04:56]} Bb8 {[%emt 0:00:44]} 14. a4 {[%emt 0:00:25]} h5 {[%emt 0:00:21]} 15. Kh1 {[%emt 0:08:06]} Bg4 {[%emt 0:07:40]} 16. Qc2 {[%emt 0:05:27]} h4 {[%emt 0:02:13]} 17. Ng1 {[%emt 0:01:36]} g5 {[%emt 0:13:00]} 18. h3 {[%emt 0:03:42]} hxg3 {[%emt 0:00:38]} 19. fxg3 {[%emt 0:00:23]} Bxh3 {[%emt 0:57:02]} 20. Nxh3 {[%emt 0:01:58]} Rxh3+ {[%emt 0:00:08]} 21. Kg1 {[%emt 0:05:07]} Rh6 {[%emt 0:00:25]} 22. Qc4 {[%emt 0:05:37]} Qg4 {[%emt 0:04:17]} 23. Rf3 {[%emt 0:09:11]} f5 {[%emt 0:04:01]} 24. Rxf5 {[%emt 0:03:01]} Qxg3 {[%emt 0:01:46]} 25. Rxg5 {[%emt 0:04:07]} Qh2+ {[%emt 0:00:07]} 26. Kf2 {[%emt 0:00:51]} Rf6+ {[%emt 0:01:24]} 27. Ke2 {[%emt 0:00:40]} Qh8 {[%emt 0:00:39]} 28. Bf3 {[%emt 0:04:54]} a6 {[%emt 0:01:25]} 29. Na3 {[%emt 0:03:00]} b5 {[%emt 0:00:40]} 30. Qb3 {[%emt 0:03:11]} Bd6 {[%emt 0:00:14]} 31. axb5 {[%emt 0:02:07]} axb5 {[%emt 0:00:05]} 32. Rag1 {[%emt 0:01:35]} Kd7 {[%emt 0:00:25]} 33. Nxb5 {[%emt 0:01:25]} Raf8 {[%emt 0:00:34]} 34. Rh5 {[%emt 0:01:22]} Qxh5 {[%emt 0:00:52]} 35. Bxh5 {[%emt 0:00:13]} Rf2+ {[%emt 0:00:08]} 36. Kd1 {[%emt 0:01:17]} Rh2 {[%emt 0:00:31]} 37. Bg4+ {[%emt 0:00:10]} Kd8 {[%emt 0:00:01]} 38. Qe6 {[%emt 0:00:40]} 1-0

[Event "48th Indian U15-ch Open 2023"]
[Site "Jalgaon"]
[Date "2023.12.31"]
[Round "7.8"]
[White "Sureka Akshat"]
[Black "Bivor Adak"]
[Result "1/2-1/2"]
[ECO "A30"]
[WhiteElo "1808"]
[BlackElo "1791"]
[Annotator "NA RC"]
[PlyCount "118"]
[EventDate "2023.12.30"]
[EventType "swiss"]
[EventCountry "IND"]
[SourceTitle "playchess.com"]
[Source "ChessBase"]
[SourceQuality "1"]
[TimeControl "5400+30"]

1. b3 {[%emt 0:01:32]} Nf6 {[%emt 0:01:00]} 2. Bb2 {[%emt 0:00:05]} c5 {[%emt 0:01:41]} 3. Nf3 {[%emt 0:00:17]} Nc6 {[%emt 0:00:40]} 4. c4 {[%emt 0:03:41]} g6 {[%emt 0:07:14]} 5. Bxf6 {[%emt 0:02:00]} exf6 {[%emt 0:00:09]} 6. Nc3 {[%emt 0:00:05]} Bg7 {[%emt 0:02:24]} 7. g3 {[%emt 0:00:24]} f5 {[%emt 0:01:16]} 8. Bg2 {[%emt 0:01:00]} O-O {[%emt 0:04:55]} 9. Rc1 {[%emt 0:01:06]} d6 {[%emt 0:01:49]} 10. O-O {[%emt 0:01:42]} Be6 {[%emt 0:01:10]} 11. e3 {[%emt 0:05:55]} Qf6 {[%emt 0:14:13]} 12. d4 {[%emt 0:02:53]} cxd4 {[%emt 0:00:08]} 13. exd4 {[%emt 0:01:38]} Nxd4 {[%emt 0:00:10]} 14. Nxd4 {[%emt 0:00:02]} Qxd4 {[%emt 0:00:12]} 15. Qxd4 {[%emt 0:00:15]} Bxd4 {[%emt 0:00:08]} 16. Rfd1 {[%emt 0:02:24]} Bxc3 {[%emt 0:08:06]} 17. Rxc3 {[%emt 0:00:01]} Rab8 {[%emt 0:00:35]} 18. Rxd6 {[%emt 0:00:16]} b6 {[%emt 0:01:03]} 19. Rcd3 {[%emt 0:01:47]} Rfc8 {[%emt 0:00:12]} 20. Bd5 {[%emt 0:05:56]} Bxd5 {[%emt 0:00:49]} 21. R6xd5 {[%emt 0:00:14]} Rc7 {[%emt 0:02:51]} 22. Rd7 {[%emt 0:02:37]} Rbb7 {[%emt 0:01:24]} 23. Rxc7 {[%emt 0:00:16]} Rxc7 {[%emt 0:00:11]} 24. f4 {[%emt 0:00:03]} Kf8 {[%emt 0:10:15]} 25. Kf2 {[%emt 0:00:18]} b5 {[%emt 0:04:53]} 26. Rd4 {[%emt 0:02:33]} bxc4 {[%emt 0:00:31]} 27. Rxc4 {[%emt 0:00:20]} Rd7 {[%emt 0:01:04]} 28. Ke2 {[%emt 0:00:14]} Rd6 {[%emt 0:04:53]} 29. Rc3 {[%emt 0:01:20]} h6 {[%emt 0:01:55]} 30. Rd3 {[%emt 0:00:36]} Ra6 {[%emt 0:00:07]} 31. a4 {[%emt 0:01:32]} g5 {[%emt 0:01:54]} 32. Kd2 {[%emt 0:11:08]} gxf4 {[%emt 0:00:06]} 33. gxf4 {[%emt 0:00:02]} Ke7 {[%emt 0:03:01]} 34. Re3+ {[%emt 0:02:46]} Kf6 {[%emt 0:03:11]} 35. Re5 {[%emt 0:02:37]} Rd6+ {[%emt 0:03:49]} 36. Kc3 {[%emt 0:00:08]} Kg6 {[%emt 0:02:25]} 37. Ra5 {[%emt 0:00:29]} a6 {[%emt 0:00:02]} 38. b4 {[%emt 0:01:08]} f6 {[%emt 0:00:10]} 39. b5 {[%emt 0:01:05]} axb5 {[%emt 0:00:05]} 40. axb5 {[%emt 0:00:12]} Rd1 {[%emt 0:06:22]} 41. Ra2 {[%emt 0:00:28]} Rc1+ {[%emt 0:06:01]} 42. Rc2 {[%emt 0:00:28]} Rb1 {[%emt 0:00:08]} 43. Rb2 {[%emt 0:00:01]} Rc1+ {[%emt 0:00:08]} 44. Kd3 {[%emt 0:00:29]} Rd1+ {[%emt 0:02:22]} 45. Kc4 {[%emt 0:00:21]} Kh5 {[%emt 0:02:41]} 46. b6 {[%emt 0:00:15]} Rd8 {[%emt 0:01:00]} 47. b7 {[%emt 0:00:06]} Rb8 {[%emt 0:00:03]} 48. Kd5 {[%emt 0:01:13]} Kg4 {[%emt 0:00:14]} 49. Ke6 {[%emt 0:02:38]} Kxf4 {[%emt 0:00:20]} 50. Rb4+ {[%emt 0:00:41]} Kg5 {[%emt 0:00:53]} 51. h4+ {[%emt 0:02:15]} Kg6 {[%emt 0:00:20]} 52. Kd5 {[%emt 0:02:34]} f4 {[%emt 0:01:13]} 53. Ke4 {[%emt 0:00:02]} Kh5 {[%emt 0:00:14]} 54. Kxf4 {[%emt 0:01:29]} Kxh4 {[%emt 0:00:05]} 55. Kf5+ {[%emt 0:00:05]} Kg3 {[%emt 0:01:45]} 56. Kg6 {[%emt 0:06:29]} h5 {[%emt 0:00:56]} 57. Rb3+ {[%emt 0:01:15]} Kg4 {[%emt 0:00:15]} 58. Rb4+ {[%emt 0:01:30]} Kg3 {[%emt 0:00:05]} 59. Kxh5 {[%emt 0:00:34]} f5 {[%emt 0:00:14]} 1/2-1/2

[Event "48th Indian U15-ch Open 2023"]
[Site "Jalgaon"]
[Date "2023.12.31"]
[Round "7.9"]
[White "Ankit Ray"]
[Black "Vatsal Singla"]
[Result "1/2-1/2"]
[ECO "A07"]
[WhiteElo "1898"]
[BlackElo "1714"]
[Annotator "NA RC"]
[PlyCount "74"]
[EventDate "2023.12.30"]
[EventType "swiss"]
[EventCountry "IND"]
[SourceTitle "playchess.com"]
[Source "ChessBase"]
[SourceQuality "1"]
[TimeControl "5400+30"]

1. Nf3 {[%emt 0:00:43]} d5 {[%emt 0:02:52]} 2. g3 {[%emt 0:00:13]} Bg4 {[%emt 0:00:31]} 3. Bg2 {[%emt 0:00:12]} Nd7 {[%emt 0:00:09]} 4. d4 {[%emt 0:02:09]} e6 {[%emt 0:01:36]} 5. h3 {[%emt 0:01:19]} Bh5 {[%emt 0:00:44]} 6. O-O {[%emt 0:00:58]} Ngf6 {[%emt 0:00:57]} 7. c4 {[%emt 0:00:12]} c6 {[%emt 0:02:45]} 8. Qb3 {[%emt 0:00:31]} Qb6 {[%emt 0:02:15]} 9. c5 {[%emt 0:00:07]} Qxb3 {[%emt 0:04:57]} 10. axb3 {[%emt 0:00:08]} Be7 {[%emt 0:01:45]} 11. b4 {[%emt 0:05:34]} O-O {[%emt 0:02:01]} 12. Nc3 {[%emt 0:06:17]} a6 {[%emt 0:00:26]} 13. g4 {[%emt 0:00:21]} Bg6 {[%emt 0:00:05]} 14. Bf4 {[%emt 0:00:21]} h5 {[%emt 0:07:42]} 15. g5 {[%emt 0:07:48]} Nh7 {[%emt 0:05:00]} 16. h4 {[%emt 0:00:26]} Bf5 {[%emt 0:03:00]} 17. Rfe1 {[%emt 0:05:18]} f6 {[%emt 0:07:15]} 18. e4 {[%emt 0:02:10]} fxg5 {[%emt 0:00:30]} 19. Bxg5 {[%emt 0:18:19]} Nxg5 {[%emt 0:01:36]} 20. Nxg5 {[%emt 0:00:45]} Bxg5 {[%emt 0:00:56]} 21. hxg5 {[%emt 0:00:02]} Bg4 {[%emt 0:07:23]} 22. b5 {[%emt 0:09:50]} Kh7 {[%emt 0:16:29]} 23. bxc6 {[%emt 0:05:57]} bxc6 {[%emt 0:00:01]} 24. Ra3 {[%emt 0:07:13]} Kg6 {[%emt 0:04:27]} 25. Rea1 {[%emt 0:00:41]} Kxg5 {[%emt 0:03:45]} 26. Rxa6 {[%emt 0:00:14]} Rab8 {[%emt 0:02:39]} 27. Ra7 {[%emt 0:01:28]} Rf7 {[%emt 0:05:49]} 28. R1a2 {[%emt 0:15:05]} Kf4 {[%emt 0:02:32]} 29. Rc7 {[%emt 0:00:50]} Ne5 {[%emt 0:04:36]} 30. Rxf7+ {[%emt 0:00:45]} Nxf7 {[%emt 0:04:24]} 31. exd5 {[%emt 0:00:06]} exd5 {[%emt 0:00:19]} 32. b4 {[%emt 0:00:06]} Rxb4 {[%emt 0:03:27]} 33. Bxd5 {[%emt 0:00:02]} Ng5 {[%emt 0:00:09]} 34. Bxc6 {[%emt 0:00:33]} Rxd4 {[%emt 0:00:02]} 35. Nd5+ {[%emt 0:01:51]} Ke5 {[%emt 0:00:04]} 36. Ne3 {[%emt 0:00:05]} Be6 {[%emt 0:02:56]} 37. Re2 {[%emt 0:03:02]} Kf4 {[%emt 0:00:12]} 1/2-1/2

[Event "48th Indian U15-ch Open 2023"]
[Site "Jalgaon"]
[Date "2023.12.31"]
[Round "7.10"]
[White "Ghadge Harsh"]
[Black "Abhash Roimya Saikia"]
[Result "1-0"]
[ECO "D10"]
[WhiteElo "1663"]
[BlackElo "1855"]
[Annotator "NA RC"]
[PlyCount "97"]
[EventDate "2023.12.30"]
[EventType "swiss"]
[EventCountry "IND"]
[SourceTitle "playchess.com"]
[Source "ChessBase"]
[SourceQuality "1"]
[TimeControl "5400+30"]

1. d4 {[%emt 0:00:18]} d5 {[%emt 0:00:18]} 2. c4 {[%emt 0:00:07]} c6 {[%emt 0:00:11]} 3. cxd5 {[%emt 0:00:03]} cxd5 {[%emt 0:00:10]} 4. Bg5 {[%emt 0:00:04]} Nf6 {[%emt 0:01:47]} 5. Bxf6 {[%emt 0:00:51]} gxf6 {[%emt 0:01:25]} 6. Nc3 {[%emt 0:00:09]} Nc6 {[%emt 0:00:16]} 7. e3 {[%emt 0:00:14]} Bf5 {[%emt 0:00:49]} 8. Qb3 {[%emt 0:04:53]} Qd7 {[%emt 0:04:34]} 9. Qxd5 {[%emt 0:03:59]} Qxd5 {[%emt 0:01:17]} 10. Nxd5 {[%emt 0:00:06]} O-O-O {[%emt 0:00:44]} 11. Nc3 {[%emt 0:01:01]} Nb4 {[%emt 0:02:28]} 12. Rc1 {[%emt 0:01:56]} Nd3+ {[%emt 0:02:23]} 13. Bxd3 {[%emt 0:00:07]} Bxd3 {[%emt 0:00:03]} 14. Nf3 {[%emt 0:12:29]} Kb8 {[%emt 0:03:49]} 15. Rd1 {[%emt 0:13:09]} Ba6 {[%emt 0:00:43]} 16. a3 {[%emt 0:04:52]} Rg8 {[%emt 0:00:14]} 17. Rg1 {[%emt 0:02:47]} f5 {[%emt 0:11:26]} 18. b4 {[%emt 0:03:28]} Rc8 {[%emt 0:05:47]} 19. Kd2 {[%emt 0:02:13]} b6 {[%emt 0:01:35]} 20. Ne5 {[%emt 0:01:23]} Bg7 {[%emt 0:00:45]} 21. Nxf7 {[%emt 0:04:11]} Bc4 {[%emt 0:00:07]} 22. Ne5 {[%emt 0:07:35]} Bxe5 {[%emt 0:03:37]} 23. dxe5 {[%emt 0:00:33]} Bb3 {[%emt 0:00:08]} 24. Rc1 {[%emt 0:00:55]} Rgd8+ {[%emt 0:01:12]} 25. Ke2 {[%emt 0:01:10]} Rc7 {[%emt 0:02:43]} 26. Kf3 {[%emt 0:10:28]} e6 {[%emt 0:16:11]} 27. h3 {[%emt 0:04:27]} Rdc8 {[%emt 0:01:39]} 28. Ne2 {[%emt 0:01:35]} Bd5+ {[%emt 0:00:10]} 29. Kg3 {[%emt 0:05:34]} f4+ {[%emt 0:18:21]} 30. exf4 {[%emt 0:09:51]} Rc2 {[%emt 0:01:22]} 31. Rxc2 {[%emt 0:01:07]} Rxc2 {[%emt 0:00:03]} 32. Nd4 {[%emt 0:00:40]} Rd2 {[%emt 0:02:31]} 33. Nf3 {[%emt 0:00:51]} Rd3 {[%emt 0:00:02]} 34. Ra1 {[%emt 0:00:13]} h5 {[%emt 0:03:21]} 35. a4 {[%emt 0:03:12]} a6 {[%emt 0:01:41]} 36. f5 {[%emt 0:00:55]} exf5 {[%emt 0:00:32]} 37. Kf4 {[%emt 0:00:07]} Bxf3 {[%emt 0:02:52]} 38. gxf3 {[%emt 0:00:03]} Kc7 {[%emt 0:00:07]} 39. a5 {[%emt 0:00:52]} b5 {[%emt 0:00:20]} 40. Rg1 {[%emt 0:00:04]} Rb3 {[%emt 0:04:04]} 41. Rg7+ {[%emt 0:00:15]} Kc6 {[%emt 0:00:28]} 42. Rg6+ {[%emt 0:00:16]} Kd7 {[%emt 0:00:15]} 43. Rxa6 {[%emt 0:00:11]} Rxb4+ {[%emt 0:00:05]} 44. Kxf5 {[%emt 0:00:04]} Rb2 {[%emt 0:00:48]} 45. e6+ {[%emt 0:00:19]} Ke7 {[%emt 0:00:17]} 46. Ra7+ {[%emt 0:00:04]} Kd6 {[%emt 0:00:09]} 47. Rd7+ {[%emt 0:00:14]} Kc6 {[%emt 0:00:06]} 48. Rd3 {[%emt 0:00:53]} Rxf2 {[%emt 0:00:11]} 49. Re3 {[%emt 0:00:23]} 1-0

[Event "48th Indian U15-ch Open 2023"]
[Site "Jalgaon"]
[Date "2024.01.01"]
[Round "8.1"]
[White "Vignesh Advaith Vemula"]
[Black "Md Imran"]
[Result "1/2-1/2"]
[ECO "B32"]
[WhiteElo "2028"]
[BlackElo "2174"]
[Annotator "RC"]
[PlyCount "104"]
[EventDate "2023.12.30"]
[EventType "swiss"]
[EventCountry "IND"]
[SourceTitle "playchess.com"]
[Source "ChessBase"]
[SourceQuality "1"]
[TimeControl "5400+30"]

1. e4 {[%emt 0:00:07]} c5 {[%emt 0:00:09]} 2. Nf3 {[%emt 0:00:06]} Nc6 {[%emt 0:00:04]} 3. d4 {[%emt 0:00:06]} cxd4 {[%emt 0:00:04]} 4. Nxd4 {[%emt 0:00:06]} e5 {[%emt 0:00:04]} 5. Nb5 {[%emt 0:01:06]} d6 {[%emt 0:00:01]} 6. c4 {[%emt 0:01:09]} Be6 {[%emt 0:00:16]} 7. N1c3 {[%emt 0:02:23]} a6 {[%emt 0:00:01]} 8. Na3 {[%emt 0:00:07]} Nf6 {[%emt 0:00:08]} 9. Be2 {[%emt 0:04:38]} Be7 {[%emt 0:01:07]} 10. Nc2 {[%emt 0:06:02]} O-O {[%emt 0:00:00]} 11. O-O {[%emt 0:05:09]} Rc8 {[%emt 0:00:00]} 12. b3 {[%emt 0:01:54]} b5 {[%emt 0:00:06]} 13. cxb5 {[%emt 0:03:16]} Na7 {[%emt 0:00:18]} 14. Bb2 {[%emt 0:04:31]} Nxb5 {[%emt 0:00:12]} 15. Nxb5 {[%emt 0:08:24]} axb5 {[%emt 0:00:11]} 16. Bd3 {[%emt 0:00:21]} Qb6 {[%emt 0:23:18]} 17. Ne3 {[%emt 0:01:20]} Qb7 {[%emt 0:00:46]} 18. Qf3 {[%emt 0:02:26]} Bd8 {[%emt 0:00:20]} 19. Nf5 {[%emt 0:04:16]} Bxf5 {[%emt 0:08:40]} 20. Qxf5 {[%emt 0:00:09]} Ba5 {[%emt 0:09:03]} 21. Rad1 {[%emt 0:11:13]} Bc3 {[%emt 0:02:36]} 22. Bc1 {[%emt 0:02:23]} Nd7 {[%emt 0:06:33]} 23. Qg4 {[%emt 0:09:14]} Kh8 {[%emt 0:02:10]} 24. Qe2 {[%emt 0:03:22]} Rb8 {[%emt 0:02:06]} 25. Bb1 {[%emt 0:00:35]} Qc6 {[%emt 0:02:34]} 26. Rd3 {[%emt 0:02:27]} Bd4 {[%emt 0:01:07]} 27. Rh3 {[%emt 0:03:22]} Nf6 {[%emt 0:04:46]} 28. Bg5 {[%emt 0:08:44]} Ng8 {[%emt 0:00:10]} 29. Kh1 {[%emt 0:01:09]} Qe8 {[%emt 0:01:14]} 30. Bd2 {[%emt 0:01:11]} Nf6 {[%emt 0:00:58]} 31. g4 {[%emt 0:01:42]} Qe6 {[%emt 0:00:58]} 32. Rh4 {[%emt 0:01:14]} g6 {[%emt 0:09:09]} 33. Qf3 {[%emt 0:01:43]} Rb7 {[%emt 0:07:04]} 34. Qg3 {[%emt 0:07:35]} Ng8 {[%emt 0:02:57]} 35. Qd3 {[%emt 0:01:39]} Qe7 {[%emt 0:01:10]} 36. Rh3 {[%emt 0:00:59]} Qe6 {[%emt 0:01:49]} 37. Rh4 {[%emt 0:00:09]} Qe7 {[%emt 0:00:08]} 38. Qh3 {[%emt 0:01:54]} f6 {[%emt 0:00:05]} 39. Qg3 {[%emt 0:00:40]} Qe6 {[%emt 0:00:50]} 40. Rh3 {[%emt 0:00:31]} Ne7 {[%emt 0:00:08]} 41. f4 {[%emt 0:00:25]} exf4 {[%emt 0:00:42]} 42. Bxf4 {[%emt 0:00:10]} Be5 {[%emt 0:00:45]} 43. g5 {[%emt 0:00:48]} Nc6 {[%emt 0:05:47]} 44. Qg2 {[%emt 0:01:05]} Rbf7 {[%emt 0:00:31]} 45. Rhf3 {[%emt 0:00:10]} Nd4 {[%emt 0:01:20]} 46. R3f2 {[%emt 0:00:21]} fxg5 {[%emt 0:01:27]} 47. Bxg5 {[%emt 0:00:17]} Rxf2 {[%emt 0:00:27]} 48. Rxf2 {[%emt 0:00:02]} Rxf2 {[%emt 0:00:20]} 49. Qxf2 {[%emt 0:00:02]} Kg7 {[%emt 0:00:09]} 50. Bd3 {[%emt 0:02:01]} Qc8 {[%emt 0:03:10]} 51. Bd2 {[%emt 0:00:34]} Ne6 {[%emt 0:01:14]} 52. Bxb5 {[%emt 0:00:32]} Qa8 {[%emt 0:00:55]} 1/2-1/2